Workbook

Sheet Situation familiale
B5: Situation familiale | I5: Montants Forfaitaires - Situation Familiale - au 01/04/2018 (1)
I6: Nbre d'enfants ou de personnes à charge | J6: Vous vivez seul (*) | K6: Vous vivez en couple | N6: seul
B7: Vous vivez: | C7: seul | I7: 0 | J7: ='Données annuelles actualisées'!B2 -> 531.51 | K7: =J7+(J7*50%) -> 797.265 | N7: en couple
E8: =IF(D9="oui","Le montant de la PA peut être majoré pour un parent isolé, suivant conditions particulières. Veuillez vous rapprocher de votre CAF.","") ->  | I8: 1 | J8: =K7 -> 797.265 | K8: =J8+(J7*30%) -> 956.718
B9: Vous attendez un enfant | D9: non | I9: 2 | J9: =K8 -> 956.718 | K9: =J9+(J7*30%) -> 1116.171
I10: Par enfant ou personne en plus | J10: =J7*40% -> 212.604 | K10: =J10 -> 212.604
B11: Nb de personnes à charge | D11: 0 | I11: (*) ces montants peuvent être majorés, sous certaines conditions, pour les personnes seules
I12: assurant la charge d'un enfant né ou à naitre. | N12: 0 | O12: oui
B13: Hébergement | I13: Montant forfaitaire correspondant à votre situation ---------------> | K13: =IF(AND(C7="seul",D11=0),J7,IF(AND(C7="en couple",D11=0),K7,IF(AND(C7="seul",D11=1),J8,IF(AND(C7="en couple",D11=1),K8,IF(AND(C7="seul",D11=2),J9,IF(AND(C7="en couple",D11=2),K9,IF(AND(C7="seul",D11>=3),J9+((D11-2)*J10),IF(AND(C7="en couple",D11>=3),K9+((D11-2)*K10),0)))))))) -> 531.51 | N13: 1 | O13: non
N14: 2
B15: Vous êtes propriétaire de votre logement ou logés gratuitement : | G15: non | I15: Forfait logement - au 01/04/2017 (2) | N15: 3
I16: Personne seule (12% de 531,51€) | J16: =J7*12% -> 63.7812 | N16: 4
B17: Aides au logement versées par votre CAF durant les 3 derniers mois | D17: Mois 1 | I17: Deux personnes (16% de 797,27€) | J17: =K7*16% -> 127.5624 | N17: 5
D18: Mois 2 | I18: Trois personnes ou plus (16,5% de 956,72€) | J18: =K8*16.5% -> 157.85847
D19: Mois 3 | O19: =SUM(E17:E19) -> 0
I20: Forfait logement retenu dans votre cas ----> | J20: =IF(AND(AND(C7="seul",D11>1,G15="oui")),J18,IF(AND(AND(C7="seul",G15="oui",D11=1)),J17,IF(AND(AND(C7="seul",O19>0,D11=1)),J17,IF(AND(AND(C7="en couple",G15="oui",D11>=1)),J18,IF(AND(G15="oui",C7="seul"),J16,IF(AND(G15="oui",C7="en couple"),J17,IF(AND(G15="non",O19=0),0,IF(AND(C7="seul",D11=0),J16,IF(AND(C7="en couple",D11=0),J17,IF(AND(C7="seul",D11=1),J17,IF(AND(C7="en couple",D11>=1),J18,IF(AND(C7="seul",D11>1),J18,0)))))))))))) -> 0
B22: ©UPSME - juin 2018 | I22: (1) Décret n° 2015-1710 du 21 décembre 2015 relatif à la prime d'activité - Article L.842-3 du Code de la sécurité sociale
I23: et Décret n° 2018-323 du 3 mai 2018 portant revalorisation du montant forfaitaire de la prime d'activité.
I24: (2) Décret n° 2015-1709 du 21 décembre 2015 relatif à a prime d'activité - Article R844-3 du Code de la sécurité sociale

Sheet Situation professionnelle Mr
B3: Situation professionnelle - Monsieur
B4: 1°) Indiquez si votre activité principale exercée relève : | E4: 2)° Indiquez votre dernier chiffre d'affaires connu :
F5: 2018 | G5: 0 | J5: =IF(AND(B6="des prestations de services",G5>33200),"Votre CA ne vous permet pas de continuer l'étude de vos droits à la prime d'activité",IF(AND(B6="des activités libérales RSI et CIPAV",G5>33200),"Votre CA ne vous permet pas de continuer l'étude de vos droits à la prime d'activité",IF(AND(B6="des activités de vente",G5>82800),"Votre CA ne vous permet pas de continuer l'étude de vos droits à la prime d'activité","Vous pouvez continuez l'étude de vos droits à la prime d'activité"))) -> Vous pouvez continuez l'étude de vos droits à la prime d'activité | K5: =IF(AND(G4="des prestations de services",L3>32900),"Votre CA ne vous permet pas de continuer l'étude de vos droits à la prime d'activité",IF(AND(G4="des activités libérales RSI et CIPAV",L3>32900),"Votre CA ne vous permet pas de continuer l'étude de vos droits à la prime d'activité",IF(AND(G4="des activités de vente",L3>82200),"Votre CA ne vous permet pas de continuer l'étude de vos droits à la prime d'activité","Vous pouvez continuez l'étude de vos droits à la prime d'activité"))) -> Vous pouvez continuez l'étude de vos droits à la prime d'activité | L5: Vous pouvez continuez l'étude de vos droits à la prime d'activité | M5: Vous pouvez continuez l'étude de vos droits à la prime d'activité | N5: Vous pouvez continuez l'étude de vos droits à la prime d'activité | O5: Vous pouvez continuez l'étude de vos droits à la prime d'activité | P5: des prestations de services
B6: des prestations de services | J6: =IF(AND(F5="des prestations de services",K4>32900),"Votre CA ne vous permet pas de continuer l'étude de vos droits à la prime d'activité",IF(AND(F5="des activités libérales RSI et CIPAV",K4>32900),"Votre CA ne vous permet pas de continuer l'étude de vos droits à la prime d'activité",IF(AND(F5="des activités de vente",K4>82200),"Votre CA ne vous permet pas de continuer l'étude de vos droits à la prime d'activité","Vous pouvez continuez l'étude de vos droits à la prime d'activité"))) -> Vous pouvez continuez l'étude de vos droits à la prime d'activité | K6: Vous pouvez continuez l'étude de vos droits à la prime d'activité | L6: Vous pouvez continuez l'étude de vos droits à la prime d'activité | M6: Vous pouvez continuez l'étude de vos droits à la prime d'activité | N6: Vous pouvez continuez l'étude de vos droits à la prime d'activité | O6: Vous pouvez continuez l'étude de vos droits à la prime d'activité | P6: des activités de vente
P7: des activités libérales RSI et CIPAV
B8: Revenus micro-entrepreneur | J8: Revenus salariés nets | M8: Revenus de placement ou du patrimoine
C9: Ventilation du chiffre d'affaires par activité | J9: Mois 1 | K9: 0
C10: Ventes (BIC - 71%) | E10: Services (BIC - 50%) | G10: Libéral (BNC - 34%) | J10: Mois 2 | K10: 0 | M10: 2014 | O10: 0
C11: CA | D11: Revenus | E11: CA | F11: Revenus | G11: CA | H11: Revenus | J11: Mois 3 | K11: 0
B12: Mois 1 | D12: =C12-(C12*71%) -> 0 | F12: =E12-(E12*50%) -> 0 | H12: =G12-(G12*34%) -> 0
B13: Mois 2 | D13: =C13-(C13*71%) -> 0 | F13: =E13-(E13*50%) -> 0 | H13: =G13-(G13*34%) -> 0 | J13: Revenus de remplacement | M13: Prestations sociales | P13: 2018
B14: Mois 3 | D14: =C14-(C14*71%) -> 0 | F14: 0 | H14: =G14-(G14*34%) -> 0 | J14: Mois 1 | K14: 0 | M14: Mois 1 | N14: 0 | P14: 2019
B15: Total | C15: =SUM(C12:C14) -> 0 | D15: =SUM(D12:D14) -> 0 | E15: 0 | F15: 0 | G15: =SUM(G12:G14) -> 0 | H15: 0 | J15: Mois 2 | K15: 0 | M15: Mois 2 | N15: 0 | P15: 2020
B16: CA moyen du trimestre | C16: =C15/3 -> 0 | E16: =E15/3 -> 0 | G16: =G15/3 -> 0 | J16: Mois 3 | K16: 0 | M16: Mois 3 | N16: 0
B17: Revenus moyens trimestre | C17: =D15/3 -> 0 | E17: =F15/3 -> 0 | G17: =H15/3 -> 0
B18: Revenu non-salarié total moyen du trimestre | E18: =C17+E17+G17 -> 0
B20: Calcul de la bonification sur les revenus d'activités salariée et non salariée
C21: Non salariés | E21: Salariés | G21: Total | I21: Bonification
B22: Mois 1 | C22: =E18 -> 0 | E22: =K9 -> 0 | G22: =SUM(C22:F22) -> 0 | I22: =IF(G22<'Données annuelles actualisées'!C1,0,IF(G22>='Données annuelles actualisées'!D1,'Données annuelles actualisées'!C2,IF(AND(G22>'Données annuelles actualisées'!C1,G22<'Données annuelles actualisées'!D1),((G22-'Données annuelles actualisées'!C1)/('Données annuelles actualisées'!D1-'Données annuelles actualisées'!C1))*'Données annuelles actualisées'!C2,0))) -> 0
B23: Mois 2 | C23: =E18 -> 0 | E23: =K10 -> 0 | G23: =SUM(C23:F23) -> 0 | I23: =IF(G23<'Données annuelles actualisées'!C1,0,IF(G23>='Données annuelles actualisées'!D1,'Données annuelles actualisées'!C2,IF(AND(G23>'Données annuelles actualisées'!C1,G23<'Données annuelles actualisées'!D1),((G23-'Données annuelles actualisées'!C1)/('Données annuelles actualisées'!D1-'Données annuelles actualisées'!C1))*'Données annuelles actualisées'!C2,0))) -> 0
B24: Mois 3 | C24: =E18 -> 0 | E24: =K11 -> 0 | G24: 0 | I24: =IF(G24<'Données annuelles actualisées'!C1,0,IF(G24>='Données annuelles actualisées'!D1,'Données annuelles actualisées'!C2,IF(AND(G24>'Données annuelles actualisées'!C1,G24<'Données annuelles actualisées'!D1),((G24-'Données annuelles actualisées'!C1)/('Données annuelles actualisées'!D1-'Données annuelles actualisées'!C1))*'Données annuelles actualisées'!C2,0))) -> 0
B26: © UPSME - juin 2018

Sheet Situation professionnelle Mme
B3: Situation professionnelle - Madame
B4: 1°) Indiquez si votre activité principale exercée relève : | E4: 2)° Indiquez votre dernier chiffre d'affaires connu :
F5: 2019 | G5: 0 | J5: =IF(AND(B6="des prestations de services",G5>33200),"Votre CA ne vous permet pas de continuer l'étude de vos droits à la prime d'activité",IF(AND(B6="des activités libérales RSI et CIPAV",G5>33200),"Votre CA ne vous permet pas de continuer l'étude de vos droits à la prime d'activité",IF(AND(B6="des activités de vente",G5>82800),"Votre CA ne vous permet pas de continuer l'étude de vos droits à la prime d'activité","Vous pouvez continuez l'étude de vos droits à la prime d'activité"))) -> Vous pouvez continuez l'étude de vos droits à la prime d'activité | K5: =IF(AND(G4="des prestations de services",L3>32900),"Votre CA ne vous permet pas de continuer l'étude de vos droits à la prime d'activité",IF(AND(G4="des activités libérales RSI et CIPAV",L3>32900),"Votre CA ne vous permet pas de continuer l'étude de vos droits à la prime d'activité",IF(AND(G4="des activités de vente",L3>82200),"Votre CA ne vous permet pas de continuer l'étude de vos droits à la prime d'activité","Vous pouvez continuez l'étude de vos droits à la prime d'activité"))) -> Vous pouvez continuez l'étude de vos droits à la prime d'activité | L5: Vous pouvez continuez l'étude de vos droits à la prime d'activité | M5: Vous pouvez continuez l'étude de vos droits à la prime d'activité | N5: Vous pouvez continuez l'étude de vos droits à la prime d'activité | O5: Vous pouvez continuez l'étude de vos droits à la prime d'activité | P5: des prestations de services
B6: des prestations de services | J6: =IF(AND(F5="des prestations de services",K4>32900),"Votre CA ne vous permet pas de continuer l'étude de vos droits à la prime d'activité",IF(AND(F5="des activités libérales RSI et CIPAV",K4>32900),"Votre CA ne vous permet pas de continuer l'étude de vos droits à la prime d'activité",IF(AND(F5="des activités de vente",K4>82200),"Votre CA ne vous permet pas de continuer l'étude de vos droits à la prime d'activité","Vous pouvez continuez l'étude de vos droits à la prime d'activité"))) -> Vous pouvez continuez l'étude de vos droits à la prime d'activité | K6: Vous pouvez continuez l'étude de vos droits à la prime d'activité | L6: Vous pouvez continuez l'étude de vos droits à la prime d'activité | M6: Vous pouvez continuez l'étude de vos droits à la prime d'activité | N6: Vous pouvez continuez l'étude de vos droits à la prime d'activité | O6: Vous pouvez continuez l'étude de vos droits à la prime d'activité | P6: des activités de vente
P7: des activités libérales RSI et CIPAV
B8: Revenus micro-entrepreneur | J8: Revenus salariés nets | M8: Revenus de placement ou du patrimoine
C9: Ventilation du chiffre d'affaires par activité | J9: Mois 1 | K9: 0
C10: Ventes (BIC - 71%) | E10: Services (BIC - 50%) | G10: Libéral (BNC - 34%) | J10: Mois 2 | K10: 0 | M10: 2014 | O10: 0
C11: CA | D11: Revenus | E11: CA | F11: Revenus | G11: CA | H11: Revenus | J11: Mois 3 | K11: 0
B12: Mois 1 | D12: =C12-(C12*71%) -> 0 | F12: =E12-(E12*50%) -> 0 | H12: =G12-(G12*34%) -> 0
B13: Mois 2 | D13: =C13-(C13*71%) -> 0 | F13: =E13-(E13*50%) -> 0 | H13: =G13-(G13*34%) -> 0 | J13: Revenus de remplacement | M13: Prestations sociales | P13: 2018
B14: Mois 3 | D14: 0 | F14: 0 | H14: 0 | J14: Mois 1 | K14: 0 | M14: Mois 1 | N14: 0 | P14: 2019
B15: Total | C15: =SUM(C12:C14) -> 0 | D15: 0 | E15: 0 | F15: 0 | G15: 0 | H15: 0 | J15: Mois 2 | K15: 0 | M15: Mois 2 | N15: 0 | P15: 2020
B16: CA moyen du trimestre | C16: =C15/3 -> 0 | E16: =E15/3 -> 0 | G16: =G15/3 -> 0 | J16: Mois 3 | K16: 0 | M16: Mois 3 | N16: 0
B17: Revenus moyens trimestre | C17: =D15/3 -> 0 | E17: =F15/3 -> 0 | G17: =H15/3 -> 0
B18: Revenu non-salarié total moyen du trimestre | E18: =C17+E17+G17 -> 0
B20: Calcul de la bonification sur les revenus d'activités salariée et non salariée
C21: Non salariés | E21: Salariés | G21: Total | I21: Bonification
B22: Mois 1 | C22: =E18 -> 0 | E22: =K9 -> 0 | G22: =SUM(C22:F22) -> 0 | I22: =IF(G22<'Données annuelles actualisées'!C1,0,IF(G22>='Données annuelles actualisées'!D1,'Données annuelles actualisées'!C2,IF(AND(G22>'Données annuelles actualisées'!C1,G22<'Données annuelles actualisées'!D1),((G22-'Données annuelles actualisées'!C1)/('Données annuelles actualisées'!D1-'Données annuelles actualisées'!C1))*'Données annuelles actualisées'!C2,0))) -> 0
B23: Mois 2 | C23: =E18 -> 0 | E23: =K10 -> 0 | G23: =SUM(C23:F23) -> 0 | I23: =IF(G23<'Données annuelles actualisées'!C1,0,IF(G23>='Données annuelles actualisées'!D1,'Données annuelles actualisées'!C2,IF(AND(G23>'Données annuelles actualisées'!C1,G23<'Données annuelles actualisées'!D1),((G23-'Données annuelles actualisées'!C1)/('Données annuelles actualisées'!D1-'Données annuelles actualisées'!C1))*'Données annuelles actualisées'!C2,0))) -> 0
B24: Mois 3 | C24: =E18 -> 0 | E24: =K11 -> 0 | G24: 0 | I24: =IF(G24<'Données annuelles actualisées'!C1,0,IF(G24>='Données annuelles actualisées'!D1,'Données annuelles actualisées'!C2,IF(AND(G24>'Données annuelles actualisées'!C1,G24<'Données annuelles actualisées'!D1),((G24-'Données annuelles actualisées'!C1)/('Données annuelles actualisées'!D1-'Données annuelles actualisées'!C1))*'Données annuelles actualisées'!C2,0))) -> 0
B26: © UPSME - juin 2018

Sheet Calcul Prime activité
B2: Eléments financiers | C2: Simulation prime d'activité - spécial micro-entrepreneur
C3: Mois 1 | E3: Mois 2 | G3: Mois 3
C4: Etape A | D4: Etape B | E4: Etape A | F4: Etape B | G4: Etape A | H4: Etape B
B5: Montant forfaitaire | C5: ='Situation familiale'!K13 -> 531.51 | D5: =C5 -> 531.51 | E5: ='Situation familiale'!K13 -> 531.51 | F5: =E5 -> 531.51 | G5: ='Situation familiale'!K13 -> 531.51 | H5: =G5 -> 531.51
B6: Revenus professionnels (62%) | C6: =C11*62% -> 0 | E6: =E11*62% -> 0 | G6: =G11*62% -> 0
B7: Bonification | C7: ='Situation professionnelle Mr'!I22+'Situation professionnelle Mme'!I22 -> 0 | E7: ='Situation professionnelle Mr'!I23+'Situation professionnelle Mme'!I23 -> 0 | G7: ='Situation professionnelle Mr'!I24+'Situation professionnelle Mme'!I24 -> 0
B9: Total | C9: =SUM(C5:C7) -> 531.51 | D9: =SUM(D5:D7) -> 531.51 | E9: 531.51 | F9: 531.51 | G9: 531.51 | H9: 531.51
B11: Revenus professionnels (100%) | C11: ='Situation professionnelle Mr'!K9+'Situation professionnelle Mme'!K9+'Situation professionnelle Mr'!E18+'Situation professionnelle Mme'!E18 -> 0 | D11: =C11 -> 0 | E11: ='Situation professionnelle Mr'!K10+'Situation professionnelle Mme'!K10+'Situation professionnelle Mme'!E18+'Situation professionnelle Mr'!E18 -> 0 | F11: =E11 -> 0 | G11: ='Situation professionnelle Mr'!K11+'Situation professionnelle Mr'!E18+'Situation professionnelle Mme'!K11+'Situation professionnelle Mme'!E18 -> 0 | H11: =G11 -> 0
B12: Revenus de remplacement | C12: ='Situation professionnelle Mr'!K14+'Situation professionnelle Mr'!N14+'Situation professionnelle Mme'!K14+'Situation professionnelle Mme'!N14+'Situation professionnelle Mr'!O10/12+'Situation professionnelle Mme'!O10/12 -> 0 | D12: =C12 -> 0 | E12: ='Situation professionnelle Mr'!K15+'Situation professionnelle Mr'!N15+'Situation professionnelle Mme'!K15+'Situation professionnelle Mme'!N15+'Situation professionnelle Mr'!O10/12+'Situation professionnelle Mme'!O10/12 -> 0 | F12: =E12 -> 0 | G12: ='Situation professionnelle Mr'!K16+'Situation professionnelle Mr'!N16+'Situation professionnelle Mme'!K16+'Situation professionnelle Mme'!N16+'Situation professionnelle Mr'!O10/12+'Situation professionnelle Mme'!O10/12 -> 0 | H12: =G12 -> 0
B13: Forfait logement | C13: ='Situation familiale'!J20 -> 0 | D13: =C13 -> 0 | E13: =C13 -> 0 | F13: =E13 -> 0 | G13: =C13 -> 0 | H13: =G13 -> 0
B15: Total | C15: =SUM(C11:C13) -> 0 | D15: =SUM(D11:D13) -> 0 | E15: 0 | F15: 0 | G15: 0 | H15: 0
B17: Résultat mois par mois | C17: =C9-C15 -> 531.51 | D17: =D9-D15 -> 531.51 | E17: 531.51 | F17: 531.51 | G17: 531.51 | H17: 531.51
C18: PA mois 1 | D18: =IF(D17>0,C17-D17,IF(AND(C17<=0,D17<=0),0,C17)) -> 0 | E18: PA mois 2 | F18: =IF(F17>0,E17-F17,IF(AND(E17<=0,F17<=0),0,E17)) -> 0 | G18: PA mois 3 | H18: =IF(H17>0,G17-H17,IF(AND(G17<=0,H17<=0),0,G17)) -> 0
B19: Résultat final | C19: Prime d'activité versée pour les trois mois suivants
C20: =(D18+F18+H18)/3 -> 0
B22: Nouvelle simulation ? Cliquez ici
B24: © UPSME - Juin 2018

Sheet Données annuelles actualisées
A1: Smic horaire | B1: 9.88 | C1: =B1*59 -> 582.92 | D1: =B1*95 -> 938.6
A2: Montant forfaitaire | B2: 531.51 | C2: =B2*12.782% -> 67.9376082
